[Event "Schack-SM 2023: Veteran-SM 65+"]
[Site "Helsingborg Arena, Mellersta Stenbocksgatan 14, Helsingborg, Sweden"]
[Date "2023.07.02"]
[Round "2.4"]
[White "Sigeman, Johan"]
[Black "Green, Per"]
[Result "0-1"]
[TimeControl "90 minutes for 40 moves + 30 minutes for the rest of games + 30 seconds per move from move one."]
[WhiteElo "2052"]
[BlackElo "1898"]

1. d4 {[%clk 01:30:55]} {[%emt 00:00:04]} Nf6 {[%clk 01:30:41]} {[%emt
00:00:19]} 2. c4 {[%clk 01:31:19]} {[%emt 00:00:07]} e6 {[%clk 01:30:41]}
{[%emt 00:00:29]} 3. g3 {[%clk 01:31:34]} {[%emt 00:00:15]} d5 {[%clk
01:30:55]} {[%emt 00:00:15]} 4. Nf3 {[%clk 01:31:58]} {[%emt 00:00:07]} dxc4
{[%clk 01:30:58]} {[%emt 00:00:27]} 5. Bg2 {[%clk 01:32:21]} {[%emt 00:00:07]}
c5 {[%clk 01:30:54]} {[%emt 00:00:34]} 6. O-O {[%clk 01:27:46]} {[%emt
00:05:05]} Nc6 {[%clk 01:31:05]} {[%emt 00:00:19]} 7. Qa4 {[%clk 01:25:31]}
{[%emt 00:02:46]} Bd7 {[%clk 01:30:57]} {[%emt 00:00:38]} 8. Qxc4 {[%clk
01:22:08]} {[%emt 00:03:52]} b5 {[%clk 01:30:37]} {[%emt 00:00:50]} 9. Qd3
{[%clk 01:20:25]} {[%emt 00:02:13]} c4 {[%clk 01:30:33]} {[%emt 00:00:34]} 10.
Qc2 {[%clk 01:13:52]} {[%emt 00:07:03]} Rc8 {[%clk 01:29:51]} {[%emt 00:01:12]}
11. Bd2 {[%clk 01:03:01]} {[%emt 00:11:21]} Be7 {[%clk 01:21:56]} {[%emt
00:08:25]} 12. a4 {[%clk 01:01:19]} {[%emt 00:02:13]} a6 {[%clk 01:21:21]}
{[%emt 00:01:05]} 13. axb5 {[%clk 01:00:48]} {[%emt 00:01:01]} axb5 {[%clk
01:21:21]} {[%emt 00:00:29]} 14. b3 {[%clk 00:57:03]} {[%emt 00:04:16]} Nb4
{[%clk 01:13:04]} {[%emt 00:08:46]} 15. Qb2 {[%clk 00:54:58]} {[%emt 00:02:34]}
Rb8 {[%clk 01:03:02]} {[%emt 00:10:33]} 16. Rc1 {[%clk 00:46:45]} {[%emt
00:08:44]} Nc6 {[%clk 00:53:51]} {[%emt 00:09:40]} 17. bxc4 {[%clk 00:39:52]}
{[%emt 00:07:23]} bxc4 {[%clk 00:53:55]} {[%emt 00:00:26]} 18. Qa2 {[%clk
00:39:39]} {[%emt 00:00:44]} Nb4 {[%clk 00:45:18]} {[%emt 00:09:07]} 19. Bxb4
{[%clk 00:36:16]} {[%emt 00:03:53]} Bxb4 {[%clk 00:43:33]} {[%emt 00:02:14]} 20.
Qxc4 {[%clk 00:33:40]} {[%emt 00:03:06]} Rc8 {[%clk 00:41:25]} {[%emt
00:02:38]} 21. Ra8 {[%clk 00:27:23]} {[%emt 00:06:47]} Rxa8 {[%clk 00:39:14]}
{[%emt 00:02:42]} 22. Qxb4 {[%clk 00:27:19]} {[%emt 00:00:34]} Nd5 {[%clk
00:37:11]} {[%emt 00:02:32]} 23. Qd2 {[%clk 00:26:39]} {[%emt 00:01:10]} Rc8
{[%clk 00:36:25]} {[%emt 00:01:15]} 24. Rd1 {[%clk 00:26:38]} {[%emt 00:00:31]}
O-O {[%clk 00:30:19]} {[%emt 00:06:36]} 25. e4 {[%clk 00:26:04]} {[%emt
00:01:05]} Nf6 {[%clk 00:30:07]} {[%emt 00:00:43]} 26. Qe3 {[%clk 00:23:38]}
{[%emt 00:02:56]} Ba4 {[%clk 00:27:57]} {[%emt 00:02:38]} 27. Re1 {[%clk
00:23:57]} {[%emt 00:00:12]} Qc7 {[%clk 00:27:37]} {[%emt 00:00:50]} 28. Nbd2
{[%clk 00:24:08]} {[%emt 00:00:20]} h6 {[%clk 00:26:17]} {[%emt 00:01:49]} 29.
h3 {[%clk 00:24:26]} {[%emt 00:00:12]} Rfd8 {[%clk 00:23:18]} {[%emt 00:03:28]}
30. Bf1 {[%clk 00:24:33]} {[%emt 00:00:23]} Bc6 {[%clk 00:21:33]} {[%emt
00:02:16]} 31. Bd3 {[%clk 00:24:04]} {[%emt 00:00:59]} Qb7 {[%clk 00:20:52]}
{[%emt 00:01:11]} 32. Qf4 {[%clk 00:22:02]} {[%emt 00:02:33]} Qc7 {[%clk
00:19:48]} {[%emt 00:01:33]} 33. Qe3 {[%clk 00:20:14]} {[%emt 00:02:18]} Bb7
{[%clk 00:17:26]} {[%emt 00:02:52]} 34. Bb1 {[%clk 00:19:23]} {[%emt 00:01:22]}
Qc3 {[%clk 00:16:28]} {[%emt 00:01:27]} 35. Qf4 {[%clk 00:18:40]} {[%emt
00:01:13]} Qb2 {[%clk 00:16:28]} {[%emt 00:00:29]} 36. Nf1 {[%clk 00:16:49]}
{[%emt 00:02:22]} Qb4 {[%clk 00:13:41]} {[%emt 00:03:16]} 37. Bd3 {[%clk
00:16:17]} {[%emt 00:01:03]} Qa5 {[%clk 00:12:50]} {[%emt 00:01:20]} 38. N1d2
{[%clk 00:15:26]} {[%emt 00:01:22]} Qa3 {[%clk 00:12:18]} {[%emt 00:01:02]} 39.
Re3 {[%clk 00:09:52]} {[%emt 00:06:05]} Rc3 {[%clk 00:09:18]} {[%emt 00:03:29]}
40. Bb1 {[%clk 00:04:10]} {[%emt 00:06:12]} Rxe3 {[%clk 00:08:53]} {[%emt
00:00:54]} 41. Qxe3 {[%clk 00:03:50]} {[%emt 00:00:51]} Qxe3 {[%clk 00:07:53]}
{[%emt 00:01:30]} 42. fxe3 {[%clk 00:04:19]} {[%emt 00:00:02]} Rc8 {[%clk
00:07:48]} {[%emt 00:00:34]} 43. Kf2 {[%clk 00:04:14]} {[%emt 00:00:35]} Rc1
{[%clk 00:07:46]} {[%emt 00:00:31]} 44. Bd3 {[%clk 00:04:29]} {[%emt 00:00:16]}
Rc3 {[%clk 00:06:48]} {[%emt 00:01:27]} 45. Bb1 {[%clk 00:04:01]} {[%emt
00:00:59]} Kf8 {[%clk 00:06:33]} {[%emt 00:00:45]} 46. g4 {[%clk 00:02:49]}
{[%emt 00:01:42]} Ke7 {[%clk 00:06:18]} {[%emt 00:00:44]} 47. Ne5 {[%clk
00:02:38]} {[%emt 00:00:42]} Ba6 {[%clk 00:04:47]} {[%emt 00:02:01]} 48. Kf3
{[%clk 00:02:34]} {[%emt 00:00:34]} Rc1 {[%clk 00:04:54]} {[%emt 00:00:23]} 0-1

[Event "Schack-SM 2023: Veteran-SM 50+"]
[Site "Helsingborg Arena, Mellersta Stenbocksgatan 14, Helsingborg, Sweden"]
[Date "2023.07.02"]
[Round "2.4"]
[White "Wahlund, Max"]
[Black "Knudsen, Andre"]
[Result "1-0"]
[TimeControl "90 minutes for 40 moves + 30 minutes for the rest of games + 30 seconds per move from move one."]
[WhiteTitle "CM"]
[WhiteElo "2002"]
[BlackElo "1842"]

1. d4 {[%clk 01:30:56]} {[%emt 00:00:03]} d5 {[%clk 01:30:53]} {[%emt
00:00:07]} 2. Bf4 {[%clk 01:31:20]} {[%emt 00:00:06]} e6 {[%clk 01:31:02]}
{[%emt 00:00:21]} 3. e3 {[%clk 01:31:35]} {[%emt 00:00:15]} c5 {[%clk
01:31:24]} {[%emt 00:00:09]} 4. Nf3 {[%clk 01:29:20]} {[%emt 00:02:44]} cxd4
{[%clk 01:30:48]} {[%emt 00:01:06]} 5. exd4 {[%clk 01:27:56]} {[%emt 00:01:55]}
Bd6 {[%clk 01:28:02]} {[%emt 00:03:15]} 6. Bb5+ {[%clk 01:23:11]} {[%emt
00:05:15]} Nc6 {[%clk 01:28:17]} {[%emt 00:00:14]} 7. Ne5 {[%clk 01:23:17]}
{[%emt 00:00:24]} Bxe5 {[%clk 01:13:34]} {[%emt 00:15:14]} 8. Bxe5 {[%clk
01:23:17]} {[%emt 00:00:30]} Nf6 {[%clk 01:13:57]} {[%emt 00:00:07]} 9. Bf4
{[%clk 01:17:34]} {[%emt 00:06:12]} Qa5+ {[%clk 01:12:13]} {[%emt 00:02:15]} 10.
Nc3 {[%clk 01:17:57]} {[%emt 00:00:07]} Ne4 {[%clk 01:12:35]} {[%emt 00:00:08]}
11. Qd3 {[%clk 01:17:33]} {[%emt 00:00:54]} O-O {[%clk 01:11:46]} {[%emt
00:01:19]} 12. O-O {[%clk 01:13:16]} {[%emt 00:04:47]} Nxc3 {[%clk 01:12:08]}
{[%emt 00:00:09]} 13. bxc3 {[%clk 01:13:37]} {[%emt 00:00:09]} Bd7 {[%clk
01:03:16]} {[%emt 00:09:21]} 14. Rfe1 {[%clk 01:04:19]} {[%emt 00:09:48]} Nb8
{[%clk 00:57:05]} {[%emt 00:06:41]} 15. Rab1 {[%clk 00:59:44]} {[%emt
00:05:05]} Bc6 {[%clk 00:49:30]} {[%emt 00:08:05]} 16. Qg3 {[%clk 00:54:27]}
{[%emt 00:05:47]} Nd7 {[%clk 00:46:34]} {[%emt 00:03:26]} 17. Bh6 {[%clk
00:52:29]} {[%emt 00:02:28]} g6 {[%clk 00:46:47]} {[%emt 00:00:17]} 18. Bxc6
{[%clk 00:45:29]} {[%emt 00:07:30]} bxc6 {[%clk 00:47:12]} {[%emt 00:00:05]} 19.
Bxf8 {[%clk 00:45:29]} {[%emt 00:00:30]} Nxf8 {[%clk 00:47:36]} {[%emt
00:00:06]} 20. Rb7 {[%clk 00:35:36]} {[%emt 00:10:23]} Qd8 {[%clk 00:42:22]}
{[%emt 00:05:43]} 21. Qf4 {[%clk 00:34:04]} {[%emt 00:02:02]} Qe8 {[%clk
00:42:35]} {[%emt 00:00:18]} 22. h4 {[%clk 00:34:18]} {[%emt 00:00:15]} Nd7
{[%clk 00:40:57]} {[%emt 00:02:10]} 23. h5 {[%clk 00:34:14]} {[%emt 00:00:32]}
gxh5 {[%clk 00:38:22]} {[%emt 00:03:06]} 24. Re3 {[%clk 00:27:43]} {[%emt
00:07:02]} Nf8 {[%clk 00:38:33]} {[%emt 00:00:19]} 25. Rf3 {[%clk 00:27:45]}
{[%emt 00:00:28]} Ng6 {[%clk 00:31:53]} {[%emt 00:07:10]} 26. Qh6 {[%clk
00:24:33]} {[%emt 00:03:41]} 1-0

[Event "Schack-SM 2023: Sverigemastarklassen"]
[Site "Helsingborg Arena, Mellersta Stenbocksgatan 14, Helsingborg, Sweden"]
[Date "2023.07.02"]
[Round "2.2"]
[White "Hector, Jonny"]
[Black "Hillarp Persson, Tiger"]
[Result "1/2-1/2"]
[TimeControl "90 minutes for 40 moves + 30 minutes for the rest of the game + 30 seconds per move from move one."]
[WhiteTitle "GM"]
[BlackTitle "GM"]
[WhiteElo "2481"]
[BlackElo "2493"]

1. e4 {[%clk 01:30:49]} {[%emt 00:00:08]} c5 {[%clk 01:30:49]} {[%emt
00:00:12]} 2. Nf3 {[%clk 01:31:13]} {[%emt 00:00:05]} d6 {[%clk 01:31:15]}
{[%emt 00:00:05]} 3. d4 {[%clk 01:31:33]} {[%emt 00:00:10]} cxd4 {[%clk
01:31:39]} {[%emt 00:00:07]} 4. Nxd4 {[%clk 01:31:54]} {[%emt 00:00:08]} Nf6
{[%clk 01:32:01]} {[%emt 00:00:07]} 5. Nc3 {[%clk 01:32:20]} {[%emt 00:00:05]}
a6 {[%clk 01:32:21]} {[%emt 00:00:11]} 6. Bg5 {[%clk 01:32:36]} {[%emt
00:00:12]} Nbd7 {[%clk 01:32:34]} {[%emt 00:00:19]} 7. f4 {[%clk 01:32:29]}
{[%emt 00:00:35]} Qa5 {[%clk 01:32:22]} {[%emt 00:00:44]} 8. Qd3 {[%clk
01:31:50]} {[%emt 00:01:09]} e5 {[%clk 01:19:02]} {[%emt 00:13:50]} 9. Nf5
{[%clk 01:28:40]} {[%emt 00:03:39]} Nxe4 {[%clk 01:18:44]} {[%emt 00:00:50]} 10.
Qxe4 {[%clk 01:21:23]} {[%emt 00:07:46]} Nc5 {[%clk 01:18:15]} {[%emt
00:01:00]} 11. Qe3 {[%clk 01:02:18]} {[%emt 00:19:34]} Bxf5 {[%clk 01:17:07]}
{[%emt 00:01:38]} 12. O-O-O {[%clk 01:00:03]} {[%emt 00:02:45]} h6 {[%clk
00:20:17]} {[%emt 00:57:20]} 13. Bh4 {[%clk 00:52:50]} {[%emt 00:07:42]} Ne6
{[%clk 00:20:15]} {[%emt 00:00:33]} 14. fxe5 {[%clk 00:44:00]} {[%emt
00:09:19]} Qxe5 {[%clk 00:18:46]} {[%emt 00:02:00]} 15. Qf2 {[%clk 00:19:46]}
{[%emt 00:24:43]} Qf4+ {[%clk 00:18:15]} {[%emt 00:01:02]} 16. Qxf4 {[%clk
00:20:09]} {[%emt 00:00:06]} Nxf4 {[%clk 00:18:39]} {[%emt 00:00:07]} 17. Bg3
{[%clk 00:20:07]} {[%emt 00:00:32]} Ne6 {[%clk 00:18:52]} {[%emt 00:00:18]} 18.
Bc4 {[%clk 00:16:45]} {[%emt 00:03:51]} Rc8 {[%clk 00:17:52]} {[%emt 00:01:30]}
19. Bd5 {[%clk 00:15:21]} {[%emt 00:01:54]} Rc7 {[%clk 00:13:22]} {[%emt
00:05:01]} 20. Rhf1 {[%clk 00:15:12]} {[%emt 00:00:38]} g6 {[%clk 00:13:02]}
{[%emt 00:00:50]} 21. Be4 {[%clk 00:13:54]} {[%emt 00:01:48]} Rxc3 {[%clk
00:09:40]} {[%emt 00:03:52]} 22. Bxf5 {[%clk 00:14:13]} {[%emt 00:00:11]} Rxg3
{[%clk 00:09:55]} {[%emt 00:00:15]} 23. Bxe6 {[%clk 00:14:36]} {[%emt
00:00:06]} Rxg2 {[%clk 00:10:19]} {[%emt 00:00:07]} 24. Bxf7+ {[%clk 00:14:24]}
{[%emt 00:00:41]} Kd8 {[%clk 00:10:37]} {[%emt 00:00:12]} 25. Rd2 {[%clk
00:08:23]} {[%emt 00:06:32]} Rxd2 {[%clk 00:09:35]} {[%emt 00:01:32]} 26. Kxd2
{[%clk 00:08:50]} {[%emt 00:00:02]} Bg7 {[%clk 00:08:50]} {[%emt 00:01:15]} 27.
Bxg6 {[%clk 00:07:23]} {[%emt 00:01:58]} Bxb2 {[%clk 00:09:06]} {[%emt
00:00:15]} 28. Rb1 {[%clk 00:06:01]} {[%emt 00:01:51]} Rg8 {[%clk 00:09:04]}
{[%emt 00:00:32]} 29. Be4 {[%clk 00:05:28]} {[%emt 00:01:03]} Be5 {[%clk
00:09:11]} {[%emt 00:00:23]} 30. Rxb7 {[%clk 00:05:46]} {[%emt 00:00:13]} Rg5
{[%clk 00:08:39]} {[%emt 00:01:02]} 31. Ra7 {[%clk 00:04:16]} {[%emt 00:01:59]}
a5 {[%clk 00:08:20]} {[%emt 00:00:49]} 32. h3 {[%clk 00:03:58]} {[%emt
00:00:48]} Rg3 {[%clk 00:07:52]} {[%emt 00:00:58]} 33. Bd3 {[%clk 00:03:07]}
{[%emt 00:01:20]} Rxh3 {[%clk 00:07:47]} {[%emt 00:00:35]} 34. Rxa5 {[%clk
00:03:28]} {[%emt 00:00:09]} h5 {[%clk 00:07:44]} {[%emt 00:00:33]} 35. Ra7
{[%clk 00:03:07]} {[%emt 00:00:52]} Rh2+ {[%clk 00:07:18]} {[%emt 00:00:56]} 36.
Ke3 {[%clk 00:03:22]} {[%emt 00:00:15]} Rh4 {[%clk 00:07:39]} {[%emt 00:00:09]}
37. Rh7 {[%clk 00:03:10]} {[%emt 00:00:41]} Ra4 {[%clk 00:07:41]} {[%emt
00:00:28]} 38. Rxh5 {[%clk 00:03:22]} {[%emt 00:00:19]} Rxa2 {[%clk 00:08:04]}
{[%emt 00:00:08]} 39. Rh7 {[%clk 00:02:55]} {[%emt 00:00:56]} Ra4 {[%clk
00:07:42]} {[%emt 00:00:53]} 40. c4 {[%clk 00:02:59]} {[%emt 00:00:27]} Ra5
{[%clk 00:08:04]} {[%emt 00:00:08]} 41. Bf5 {[%clk 00:01:40]} {[%emt 00:01:48]}
Bd4+ {[%clk 00:06:12]} {[%emt 00:02:22]} 42. Kf4 {[%clk 00:01:40]} {[%emt
00:00:31]} Be3+ {[%clk 00:06:07]} {[%emt 00:00:34]} 43. Kg4 {[%clk 00:01:42]}
{[%emt 00:00:28]} Ra7 {[%clk 00:06:27]} {[%emt 00:00:10]} 1/2-1/2

[Event "Schack-SM 2023: Mastarklassen-elit"]
[Site "Helsingborg Arena, Mellersta Stenbocksgatan 14, Helsingborg, Sweden"]
[Date "2023.07.02"]
[Round "2.1"]
[White "Lindberg, Bengt"]
[Black "Lokander, Martin"]
[Result "0-1"]
[TimeControl "90 minutes for 40 moves + 30 minutes for the rest of games + 30 seconds per move from move one."]
[WhiteTitle "IM"]
[BlackTitle "IM"]
[WhiteElo "2353"]
[BlackElo "2444"]

1. e4 {[%clk 01:30:55]} {[%emt 00:00:04]} Nf6 {[%clk 01:30:52]} {[%emt
00:00:09]} 2. e5 {[%clk 01:30:30]} {[%emt 00:00:55]} Nd5 {[%clk 01:31:17]}
{[%emt 00:00:05]} 3. d4 {[%clk 01:29:49]} {[%emt 00:01:11]} d6 {[%clk
01:31:40]} {[%emt 00:00:07]} 4. Nf3 {[%clk 01:30:07]} {[%emt 00:00:11]} dxe5
{[%clk 01:31:59]} {[%emt 00:00:12]} 5. Nxe5 {[%clk 01:29:51]} {[%emt 00:00:45]}
g6 {[%clk 01:32:17]} {[%emt 00:00:13]} 6. Be2 {[%clk 01:22:54]} {[%emt
00:07:26]} Bg7 {[%clk 01:32:22]} {[%emt 00:00:26]} 7. O-O {[%clk 01:22:17]}
{[%emt 00:01:07]} O-O {[%clk 01:32:07]} {[%emt 00:00:45]} 8. Re1 {[%clk
01:12:24]} {[%emt 00:10:22]} c5 {[%clk 01:28:27]} {[%emt 00:04:11]} 9. dxc5
{[%clk 01:02:26]} {[%emt 00:10:28]} Bxe5 {[%clk 01:20:16]} {[%emt 00:08:41]} 10.
Bf3 {[%clk 01:01:44]} {[%emt 00:01:12]} Qc7 {[%clk 01:20:45]} {[%emt 00:00:02]}
11. Qxd5 {[%clk 00:59:43]} {[%emt 00:02:30]} Nc6 {[%clk 01:16:51]} {[%emt
00:04:25]} 12. c3 {[%clk 00:46:17]} {[%emt 00:13:56]} Bxh2+ {[%clk 01:03:44]}
{[%emt 00:13:37]} 13. Kh1 {[%clk 00:45:45]} {[%emt 00:01:01]} Bf4 {[%clk
01:03:26]} {[%emt 00:00:49]} 14. Bxf4 {[%clk 00:40:40]} {[%emt 00:05:36]} Qxf4
{[%clk 01:03:51]} {[%emt 00:00:05]} 15. Qe4 {[%clk 00:40:25]} {[%emt 00:00:43]}
Qf6 {[%clk 00:55:01]} {[%emt 00:09:21]} 16. Nd2 {[%clk 00:38:17]} {[%emt
00:02:37]} Bf5 {[%clk 00:54:45]} {[%emt 00:00:46]} 17. Qf4 {[%clk 00:36:33]}
{[%emt 00:02:13]} Rad8 {[%clk 00:53:49]} {[%emt 00:01:28]} 18. Nc4 {[%clk
00:35:16]} {[%emt 00:01:47]} g5 {[%clk 00:38:57]} {[%emt 00:15:23]} 19. Qg3
{[%clk 00:35:28]} {[%emt 00:00:16]} Kg7 {[%clk 00:32:38]} {[%emt 00:06:50]} 20.
Re3 {[%clk 00:31:24]} {[%emt 00:04:33]} h5 {[%clk 00:29:03]} {[%emt 00:04:06]}
21. Bxc6 {[%clk 00:30:24]} {[%emt 00:01:31]} bxc6 {[%clk 00:28:35]} {[%emt
00:00:58]} 22. Rae1 {[%clk 00:26:57]} {[%emt 00:03:55]} Be6 {[%clk 00:25:13]}
{[%emt 00:03:53]} 23. Rf3 {[%clk 00:22:27]} {[%emt 00:04:59]} h4 {[%clk
00:19:45]} {[%emt 00:05:59]} 24. Qh2 {[%clk 00:19:48]} {[%emt 00:03:07]} Qg6
{[%clk 00:13:51]} {[%emt 00:06:27]} 25. Ne5 {[%clk 00:16:58]} {[%emt 00:03:20]}
Qh5 {[%clk 00:08:14]} {[%emt 00:06:07]} 26. c4 {[%clk 00:11:00]} {[%emt
00:06:28]} g4 {[%clk 00:07:13]} {[%emt 00:01:30]} 27. Rfe3 {[%clk 00:08:26]}
{[%emt 00:03:03]} Rd2 {[%clk 00:05:35]} {[%emt 00:02:10]} 28. Qf4 {[%clk
00:08:33]} {[%emt 00:00:21]} g3 {[%clk 00:05:20]} {[%emt 00:00:46]} 29. Nf3
{[%clk 00:08:00]} {[%emt 00:01:01]} Rxf2 {[%clk 00:04:27]} {[%emt 00:01:25]} 30.
Qd4+ {[%clk 00:01:58]} {[%emt 00:06:33]} Kg8 {[%clk 00:02:17]} {[%emt
00:02:40]} 31. Re5 {[%clk 00:00:53]} {[%emt 00:01:34]} Qh6 {[%clk 00:02:44]}
{[%emt 00:00:03]} 32. Rg5+ {[%clk 00:00:53]} {[%emt 00:00:30]} Kh7 {[%clk
00:03:13]} {[%emt 00:00:01]} 33. Qe4+ {[%clk 00:01:05]} {[%emt 00:00:18]} f5
{[%clk 00:03:39]} {[%emt 00:00:05]} 34. Qxe6 {[%clk 00:00:43]} {[%emt
00:00:52]} Qxe6 {[%clk 00:03:57]} {[%emt 00:00:13]} 35. Rxe6 {[%clk 00:01:06]}
{[%emt 00:00:05]} Rf1+ {[%clk 00:04:25]} {[%emt 00:00:02]} 36. Ng1 {[%clk
00:01:29]} {[%emt 00:00:07]} Rd8 {[%clk 00:04:53]} {[%emt 00:00:03]} 37. Rxf5
{[%clk 00:00:38]} {[%emt 00:01:20]} Rxf5 {[%clk 00:05:19]} {[%emt 00:00:05]} 38.
Rxe7+ {[%clk 00:01:03]} {[%emt 00:00:05]} Kh6 {[%clk 00:04:27]} {[%emt
00:01:20]} 39. Re1 {[%clk 00:01:07]} {[%emt 00:00:27]} Rf2 {[%clk 00:03:55]}
{[%emt 00:01:03]} 40. Nh3 {[%clk 00:00:34]} {[%emt 00:01:03]} Rxb2 {[%clk
00:03:51]} {[%emt 00:00:33]} 0-1

[Event "Schack-SM 2023: Junior-SM"]
[Site "Helsingborg Arena, Mellersta Stenbocksgatan 14, Helsingborg, Sweden"]
[Date "2023.07.02"]
[Round "2.4"]
[White "Dingertz, Erik"]
[Black "Strom-Engdahl, Alexander"]
[Result "1/2-1/2"]
[TimeControl "90 minutes for 40 moves + 30 minutes for the rest of the game + 30 seconds per move from move one."]
[WhiteElo "2090"]
[BlackElo "2120"]

1. d4 {[%clk 01:30:56]} {[%emt 00:00:04]} Nf6 {[%clk 01:30:54]} {[%emt
00:00:07]} 2. c4 {[%clk 01:31:22]} {[%emt 00:00:04]} e6 {[%clk 01:31:19]}
{[%emt 00:00:05]} 3. g3 {[%clk 01:31:49]} {[%emt 00:00:03]} d5 {[%clk
01:31:03]} {[%emt 00:00:45]} 4. Nf3 {[%clk 01:32:12]} {[%emt 00:00:07]} dxc4
{[%clk 01:31:11]} {[%emt 00:00:23]} 5. Bg2 {[%clk 01:32:20]} {[%emt 00:00:21]}
c5 {[%clk 01:31:28]} {[%emt 00:00:13]} 6. Qa4+ {[%clk 01:26:56]} {[%emt
00:05:54]} Nbd7 {[%clk 01:29:45]} {[%emt 00:02:13]} 7. O-O {[%clk 01:23:33]}
{[%emt 00:03:54]} a6 {[%clk 01:28:52]} {[%emt 00:01:23]} 8. dxc5 {[%clk
01:05:22]} {[%emt 00:18:41]} Bxc5 {[%clk 01:29:11]} {[%emt 00:00:11]} 9. Nc3
{[%clk 01:04:52]} {[%emt 00:01:00]} Rb8 {[%clk 01:28:29]} {[%emt 00:01:11]} 10.
Qxc4 {[%clk 01:04:18]} {[%emt 00:01:03]} b5 {[%clk 01:28:47]} {[%emt 00:00:13]}
11. Qd3 {[%clk 01:04:09]} {[%emt 00:00:39]} Bb7 {[%clk 01:29:09]} {[%emt
00:00:09]} 12. Bf4 {[%clk 01:03:28]} {[%emt 00:01:11]} Rc8 {[%clk 01:29:34]}
{[%emt 00:00:05]} 13. Rfd1 {[%clk 01:02:35]} {[%emt 00:01:22]} O-O {[%clk
01:25:22]} {[%emt 00:04:42]} 14. Ne5 {[%clk 00:52:38]} {[%emt 00:10:28]} Bxg2
{[%clk 01:25:21]} {[%emt 00:00:30]} 15. Kxg2 {[%clk 00:53:05]} {[%emt
00:00:03]} Nxe5 {[%clk 01:25:43]} {[%emt 00:00:09]} 16. Bxe5 {[%clk 00:53:29]}
{[%emt 00:00:06]} Be7 {[%clk 01:20:50]} {[%emt 00:05:22]} 17. Qf3 {[%clk
00:37:02]} {[%emt 00:16:57]} Qb6 {[%clk 01:20:34]} {[%emt 00:00:47]} 18. Rd3
{[%clk 00:36:36]} {[%emt 00:00:55]} Qc6 {[%clk 01:11:23]} {[%emt 00:09:40]} 19.
Rad1 {[%clk 00:27:54]} {[%emt 00:09:13]} b4 {[%clk 01:08:01]} {[%emt 00:03:52]}
20. Qxc6 {[%clk 00:25:49]} {[%emt 00:02:35]} Rxc6 {[%clk 01:08:00]} {[%emt
00:00:31]} 21. Bxf6 {[%clk 00:26:15]} {[%emt 00:00:04]} Bxf6 {[%clk 01:08:15]}
{[%emt 00:00:15]} 22. Na4 {[%clk 00:26:37]} {[%emt 00:00:08]} Rfc8 {[%clk
01:04:36]} {[%emt 00:04:08]} 23. Kf3 {[%clk 00:23:56]} {[%emt 00:03:13]} Kf8
{[%clk 01:00:54]} {[%emt 00:04:11]} 24. R1d2 {[%clk 00:21:46]} {[%emt
00:02:41]} Rc2 {[%clk 00:57:04]} {[%emt 00:04:19]} 25. Ke3 {[%clk 00:21:40]}
{[%emt 00:00:36]} Ke8 {[%clk 00:51:08]} {[%emt 00:06:26]} 26. Rd6 {[%clk
00:20:37]} {[%emt 00:01:33]} R8c6 {[%clk 00:49:14]} {[%emt 00:02:25]} 27. Rxc2
{[%clk 00:20:12]} {[%emt 00:00:54]} Rxd6 {[%clk 00:46:52]} {[%emt 00:02:52]} 28.
Rc7 {[%clk 00:20:28]} {[%emt 00:00:14]} a5 {[%clk 00:38:43]} {[%emt 00:08:40]}
29. Rc8+ {[%clk 00:12:32]} {[%emt 00:08:26]} Bd8 {[%clk 00:36:34]} {[%emt
00:02:38]} 30. Nc5 {[%clk 00:10:21]} {[%emt 00:02:41]} Ke7 {[%clk 00:35:47]}
{[%emt 00:01:17]} 31. Nd3 {[%clk 00:10:22]} {[%emt 00:00:29]} Bb6+ {[%clk
00:34:28]} {[%emt 00:01:49]} 32. Kf3 {[%clk 00:10:42]} {[%emt 00:00:09]} f6
{[%clk 00:30:42]} {[%emt 00:04:16]} 33. g4 {[%clk 00:08:18]} {[%emt 00:02:54]}
e5 {[%clk 00:26:32]} {[%emt 00:04:39]} 34. h4 {[%clk 00:07:04]} {[%emt
00:01:45]} Ke6 {[%clk 00:24:58]} {[%emt 00:02:04]} 35. Nc5+ {[%clk 00:07:22]}
{[%emt 00:00:12]} Bxc5 {[%clk 00:19:55]} {[%emt 00:05:33]} 36. Rxc5 {[%clk
00:07:48]} {[%emt 00:00:03]} Rd2 {[%clk 00:20:15]} {[%emt 00:00:10]} 37. Rxa5
{[%clk 00:07:24]} {[%emt 00:00:55]} Rxb2 {[%clk 00:20:40]} {[%emt 00:00:06]} 38.
h5 {[%clk 00:06:43]} {[%emt 00:01:10]} b3 {[%clk 00:20:19]} {[%emt 00:00:51]}
39. axb3 {[%clk 00:06:24]} {[%emt 00:00:49]} Rxb3+ {[%clk 00:20:43]} {[%emt
00:00:05]} 40. e3 {[%clk 00:06:42]} {[%emt 00:00:12]} Rb7 {[%clk 00:20:56]}
{[%emt 00:00:18]} 41. Ra6+ {[%clk 00:05:20]} {[%emt 00:01:52]} Kf7 {[%clk
00:21:06]} {[%emt 00:00:19]} 42. Ra8 {[%clk 00:05:23]} {[%emt 00:00:28]} h6
{[%clk 00:16:52]} {[%emt 00:04:44]} 43. Ke4 {[%clk 00:05:08]} {[%emt 00:00:45]}
Rc7 {[%clk 00:17:12]} {[%emt 00:00:10]} 1/2-1/2